bitfinex-derivatives/quotes_BTCF0:USTF0_20250830
["timestamp","ask_amount","ask_price","bid_price","bid_amount"]
[1756522645508,0.50734405,108020.0,108010.0,0.78749089]
[1756522645814,0.14921316,108020.0,108010.0,0.78749089]
[1756522646415,0.15021316,108020.0,108010.0,0.78749089]
[1756522646823,0.50634405,108020.0,108010.0,0.78749089]
[1756522647120,0.50734405,108020.0,108010.0,0.78749089]
[1756522647311,0.50634405,108020.0,108010.0,0.78749089]
[1756522647813,0.50634405,108020.0,108010.0,0.42936]
[1756522648019,0.50634405,108020.0,108010.0,0.78749089]
[1756522648221,0.17146262,108020.0,108010.0,0.78749089]
[1756522648420,0.52959351,108020.0,108010.0,0.78749089]
[1756522648720,0.52959351,108020.0,108010.0,0.42669089]
[1756522648721,0.17146262,108020.0,108010.0,0.42669089]
[1756522649022,0.52959351,108020.0,108010.0,0.42669089]
[1756522650229,0.52959351,108020.0,108010.0,0.06856]
[1756522650426,0.52959351,108020.0,108010.0,0.42669089]
[1756522653918,0.52959351,108020.0,108010.0,0.06856]
[1756522654228,0.52959351,108020.0,108010.0,0.42669089]
[1756522654626,0.52959351,108020.0,108010.0,0.06856]
[1756522654828,0.52959351,108020.0,108010.0,0.42669089]
[1756522656329,0.02691,107990.0,107980.0,0.71893089]
[1756522656533,0.42646089,107990.0,107980.0,0.74645089]
[1756522656725,0.42646089,107990.0,107980.0,1.10458178]
[1756522657326,0.42646089,107990.0,107980.0,1.10658178]
[1756522657527,0.42646089,107990.0,107980.0,0.39332]
[1756522657722,0.42646089,107990.0,107980.0,0.03252]
[1756522658036,0.42646089,107990.0,107980.0,0.39065089]
[1756522658634,0.42746089,107990.0,107980.0,0.43013089]
[1756522658835,0.45070773,107990.0,107980.0,0.43013089]
[1756522659134,0.45170773,107990.0,107980.0,0.42813089]
[1756522659337,0.81250773,107990.0,107980.0,0.07]
[1756522659536,0.81250773,107990.0,107980.0,0.42813089]
[1756522659935,0.81150773,107990.0,107980.0,0.42813089]
[1756522660134,0.81350773,107990.0,107980.0,0.42813089]
[1756522660839,1.66254773,107990.0,107980.0,0.07]
[1756522661536,1.66254773,107990.0,107980.0,0.42813089]
[1756522662036,0.02691,107970.0,107960.0,0.34837088]
[1756522662230,0.08917799,107970.0,107960.0,0.02752]
[1756522662430,0.80810888,107970.0,107960.0,0.02752]
[1756522662632,0.80810888,107970.0,107960.0,0.38565089]
[1756522663336,0.44997799,107970.0,107960.0,0.02752]
[1756522664138,0.44997799,107970.0,107960.0,0.07]
[1756522665736,0.45397799,107970.0,107960.0,0.07]
[1756522666934,0.52823559,107970.0,107960.0,0.07]
[1756522667537,0.1051676,107970.0,107960.0,0.07]
[1756522669436,0.1465876,107970.0,107960.0,0.07]
[1756522671142,0.1465876,107970.0,107960.0,0.42800373]
[1756522672443,0.1465876,107970.0,107960.0,0.07]
[1756522672638,0.1465876,107970.0,107960.0,0.42800373]
[1756522682349,0.16979329,107970.0,107960.0,0.42800373]
[1756522685451,0.52777113,107970.0,107960.0,0.78595568]
[1756522686655,0.88857113,107970.0,107960.0,0.42797784]
[1756522687446,0.88857113,107970.0,107950.0,0.08899191]
[1756522687447,0.06997,107960.0,107950.0,0.08899191]
[1756522687648,2.03841945,107960.0,107950.0,0.44696975]
[1756522687843,1.31964161,107960.0,107950.0,0.44696975]
[1756522688044,1.68044161,107960.0,107950.0,0.44696975]
[1756522688850,1.68144161,107960.0,107950.0,0.44696975]
[1756522689558,1.68244161,107960.0,107950.0,0.44696975]
[1756522690056,1.68240161,107960.0,107950.0,0.44696975]
[1756522690452,1.32160161,107960.0,107950.0,0.44696975]
[1756522691258,2.29037945,107960.0,107930.0,0.01896407]
[1756522691552,0.43077,107940.0,107930.0,0.04788407]
[1756522691756,0.45407163,107940.0,107930.0,0.04788407]
[1756522692445,0.45407163,107940.0,107930.0,0.04888407]
[1756522692645,0.81204947,107940.0,107930.0,0.40686191]
[1756522693052,1.17284947,107940.0,107930.0,0.40686191]
[1756522693248,0.81487163,107940.0,107930.0,0.04888407]
[1756522693451,1.17307989,107940.0,107930.0,0.08997407]
[1756522693655,1.17307989,107940.0,107930.0,0.09197407]
[1756522694252,2.62900815,107940.0,107930.0,0.003]
[1756522695055,2.67467094,107940.0,107930.0,0.003]
[1756522695260,2.63538094,107940.0,107910.0,0.39929826]
[1756522695452,0.42817826,107930.0,107920.0,0.02892]
[1756522695653,0.83294,107930.0,107920.0,0.02892]
[1756522696756,0.83494,107930.0,107920.0,0.02892]
[1756522697362,1.08494,107930.0,107910.0,0.04109]
[1756522697558,0.78897826,107920.0,107910.0,0.07001]
[1756522697756,1.63673826,107920.0,107910.0,0.07001]
[1756522698758,1.63773826,107920.0,107910.0,0.07001]
[1756522699661,1.63873826,107920.0,107910.0,0.07001]
[1756522701658,1.63873826,107920.0,107890.0,0.3608]
[1756522701659,0.04129,107910.0,107890.0,0.32928826]
[1756522701962,0.80932569,107910.0,107900.0,0.01283]
[1756522702154,1.17012569,107910.0,107900.0,0.01283]
[1756522702350,2.01788569,107910.0,107900.0,0.26283]
[1756522702558,1.65967743,107910.0,107900.0,0.26283]
[1756522703362,1.73492508,107910.0,107900.0,0.26283]
[1756522703661,2.09313334,107910.0,107900.0,0.26283]
[1756522703855,2.09313334,107910.0,107900.0,0.27085]
[1756522704056,2.09313334,107910.0,107900.0,0.26283]
[1756522704458,2.09313334,107910.0,107900.0,0.26383]
[1756522705060,2.09313334,107910.0,107900.0,0.27185]
[1756522705653,2.09313334,107910.0,107900.0,0.26383]
[1756522706759,2.09313334,107910.0,107900.0,0.27185]
[1756522707467,1.24537334,107910.0,107900.0,0.27185]
[1756522707767,2.09317334,107910.0,107900.0,0.27185]
[1756522708567,2.09317334,107910.0,107900.0,0.29074897]
[1756522708962,1.24537334,107910.0,107900.0,0.29074897]
[1756522709162,2.09313334,107910.0,107900.0,0.29074897]
[1756522710670,0.12427508,107910.0,107900.0,1.00975723]
[1756522710877,0.16764508,107910.0,107900.0,0.64895723]
[1756522711164,0.52844508,107910.0,107900.0,0.64895723]
[1756522711363,0.52844508,107910.0,107900.0,0.39895723]
[1756522711967,0.88665334,107910.0,107900.0,0.01989897]
[1756522712467,0.88665334,107910.0,107900.0,0.03276897]
[1756522712468,0.52844508,107910.0,107900.0,0.03276897]
[1756522714270,0.88665334,107910.0,107900.0,0.03276897]
[1756522715266,0.88665334,107910.0,107900.0,0.01989897]
[1756522715568,0.071,107890.0,107880.0,0.39804177]
[1756522715776,0.4318,107890.0,107880.0,0.39804177]
[1756522716468,1.10743826,107890.0,107870.0,0.36624826]
[1756522716667,0.40928823,107880.0,107870.0,0.02091]
[1756522716975,0.40628823,107880.0,107870.0,0.02091]
[1756522717366,0.76449649,107880.0,107870.0,0.02091]
[1756522717570,0.40628823,107880.0,107870.0,0.02491]
[1756522717970,0.40628823,107880.0,107870.0,0.01687]
[1756522718165,0.40428823,107880.0,107870.0,0.01587]
[1756522718564,0.44765823,107880.0,107870.0,0.01587]
[1756522718967,0.44765823,107880.0,107870.0,0.01687]
[1756522719370,0.80586649,107880.0,107870.0,0.01687]
[1756522719972,0.80586649,107880.0,107870.0,0.01387]
[1756522722074,0.80586649,107880.0,107870.0,0.001]
[1756522722371,0.82909605,107880.0,107870.0,0.001]
[1756522722568,1.90354649,107880.0,107870.0,0.001]
[1756522722874,1.92677942,107880.0,107870.0,0.001]
[1756522724074,1.07909942,107880.0,107870.0,0.001]
[1756522724279,1.92681942,107880.0,107870.0,0.001]
[1756522726476,1.07909942,107880.0,107870.0,0.001]
[1756522726674,1.92681942,107880.0,107870.0,0.001]
[1756522726876,1.07909942,107880.0,107870.0,0.001]
[1756522727077,1.92677942,107880.0,107870.0,0.001]
[1756522727582,1.92681942,107880.0,107870.0,0.001]
[1756522730881,1.92677942,107880.0,107870.0,0.03105]
[1756522731690,1.56857116,107880.0,107870.0,0.03105]
[1756522731882,1.92677942,107880.0,107870.0,0.03105]
[1756522733284,1.07909942,107880.0,107870.0,0.03105]
[1756522733482,1.92673942,107880.0,107870.0,0.03105]
[1756522734586,1.92673942,107880.0,107870.0,0.001]
[1756522737485,1.07909942,107880.0,107870.0,0.001]
[1756522737687,1.07909942,107880.0,107870.0,0.03105]
[1756522737887,1.92669942,107880.0,107870.0,0.03105]
[1756522738290,1.92669942,107880.0,107870.0,0.001]
[1756522739190,1.31849116,107880.0,107870.0,0.03105]
[1756522739385,1.67669942,107880.0,107870.0,0.03105]
[1756522739590,1.67669942,107880.0,107870.0,0.01965474]
[1756522740292,0.82909942,107880.0,107870.0,0.01965474]
[1756522740487,1.67669942,107880.0,107870.0,0.04970474]
[1756522741391,1.67665942,107880.0,107870.0,0.09205474]
[1756522741591,0.82909942,107880.0,107870.0,0.09205474]
[1756522741791,1.67665942,107880.0,107870.0,0.09205474]
[1756522742592,1.31845116,107880.0,107870.0,0.09205474]
[1756522742794,1.67665942,107880.0,107870.0,0.09205474]
[1756522743292,1.67661942,107880.0,107870.0,0.09205474]
[1756522744388,1.67661942,107880.0,107870.0,0.04970474]
[1756522744589,0.82909942,107880.0,107870.0,0.04970474]
[1756522744790,1.67657942,107880.0,107870.0,0.04970474]
[1756522746498,1.67657942,107880.0,107870.0,0.01965474]
[1756522746790,1.67653942,107880.0,107870.0,0.01965474]
[1756522748898,1.67653942,107880.0,107870.0,0.04837474]
[1756522749495,0.82909942,107880.0,107870.0,0.04837474]
[1756522749695,0.47089116,107880.0,107870.0,0.448933]
[1756522749997,1.31829116,107880.0,107870.0,0.448933]
[1756522750898,1.31829116,107880.0,107870.0,0.09072474]
[1756522751099,1.31829116,107880.0,107870.0,0.448933]
[1756522751599,0.47089116,107880.0,107870.0,0.448933]
[1756522751802,1.31825116,107880.0,107870.0,0.448933]
[1756522753502,0.96245116,107880.0,107870.0,0.448933]
[1756522754002,1.32325116,107880.0,107870.0,0.448933]
[1756522755396,1.68145942,107880.0,107870.0,0.04837474]
[1756522755710,1.68145942,107880.0,107870.0,0.01965474]
[1756522758306,1.68145942,107880.0,107870.0,0.04837474]
[1756522758807,1.68145942,107880.0,107870.0,0.01965474]
[1756522759510,1.68145942,107880.0,107870.0,0.04837474]
[1756522759998,1.68145942,107880.0,107870.0,0.01965474]
[1756522761108,1.32325116,107880.0,107870.0,0.04837474]
[1756522761308,1.68145942,107880.0,107870.0,0.04837474]
[1756522762907,1.32325116,107880.0,107870.0,0.04837474]
[1756522763109,1.68145942,107880.0,107870.0,0.04837474]
[1756522769319,2.04045368,107880.0,107870.0,0.406976]
[1756522773530,2.04045368,107880.0,107870.0,0.378256]
[1756522776330,2.04045368,107880.0,107870.0,0.01965474]
[1756522776526,2.04045368,107880.0,107870.0,0.378256]
[1756522778135,2.04045368,107880.0,107870.0,0.405756]
[1756522779833,0.47589116,107880.0,107870.0,0.447066]
[1756522780131,1.68129242,107880.0,107870.0,0.447066]
[1756522780731,1.68129242,107880.0,107870.0,0.405756]
[1756522781125,0.83449242,107880.0,107870.0,0.405756]
[1756522781328,1.68125242,107880.0,107870.0,0.04715474]
[1756522781633,1.68125242,107880.0,107870.0,0.405756]
[1756522782334,2.03985368,107880.0,107870.0,0.405756]
[1756522783537,2.03985368,107880.0,107870.0,0.01965474]
[1756522785229,2.28985368,107880.0,107850.0,0.05993337]
[1756522785425,0.79061126,107860.0,107850.0,0.44603463]
[1756522786139,0.43201,107860.0,107850.0,0.44603463]
[1756522786331,0.79061126,107860.0,107850.0,0.44603463]
[1756522786637,0.79061126,107860.0,107850.0,0.45103463]
[1756522786939,0.47064029,107860.0,107850.0,0.45103463]
[1756522787540,0.47064029,107860.0,107850.0,0.45003463]
[1756522790741,0.47064029,107860.0,107850.0,0.43141126]
[1756522792036,0.10984029,107860.0,107850.0,0.43141126]
[1756522797340,0.10984029,107860.0,107850.0,1.27797126]
[1756522800338,0.06566029,107860.0,107850.0,1.27797126]
[1756522800548,0.03863029,107860.0,107850.0,2.24737252]
[1756522800740,0.02703,107860.0,107850.0,2.24737252]
[1756522800939,0.02703,107860.0,107850.0,2.20606252]
[1756522801342,0.42964126,107860.0,107850.0,1.23658126]
[1756522801543,1.14904252,107860.0,107850.0,0.07576]
[1756522801748,1.18776858,107860.0,107850.0,0.0315]
[1756522803438,0.82916732,107860.0,107850.0,0.0315]
[1756522803637,1.18776858,107860.0,107850.0,0.0315]
[1756522803839,1.18776858,107860.0,107850.0,0.39010126]
[1756522804048,0.82916732,107860.0,107850.0,0.0315]
[1756522804445,0.82916732,107860.0,107850.0,0.39010126]
[1756522807346,0.82916732,107860.0,107850.0,0.43436126]
[1756522808157,0.10976606,107860.0,107850.0,0.43436126]
[1756522822753,0.10976606,107860.0,107850.0,0.79516126]
[1756522822954,0.10976606,107860.0,107850.0,1.64136126]
[1756522823152,0.10976606,107860.0,107850.0,1.6600901]
[1756522825860,0.10976606,107860.0,107850.0,1.2992901]
[1756522826658,0.66849906,107870.0,107850.0,1.6158301]
[1756522826958,0.68347906,107870.0,107860.0,0.43090126]
[1756522827962,0.71593573,107870.0,107860.0,0.43090126]
[1756522828966,0.72529573,107870.0,107860.0,0.43090126]
[1756522830361,0.72529573,107870.0,107860.0,0.0723]
[1756522830569,0.74860619,107870.0,107860.0,0.0723]
[1756522831060,0.74860619,107870.0,107860.0,0.43090126]
[1756522832467,0.73924619,107870.0,107850.0,1.2663601]
[1756522832661,0.72967126,107860.0,107850.0,0.40155126]
[1756522832861,0.74610126,107860.0,107850.0,0.42854126]
[1756522833664,0.74610126,107860.0,107850.0,0.43154126]
[1756522836463,1.10470252,107860.0,107850.0,0.43154126]
[1756522836669,0.74610126,107860.0,107850.0,0.43154126]
[1756522837770,0.0267,107860.0,107850.0,0.42954126]
[1756522837960,0.38530126,107860.0,107850.0,0.42954126]
[1756522838156,0.38530126,107860.0,107850.0,0.42854126]
[1756522838976,0.0267,107860.0,107850.0,0.42854126]
[1756522839266,0.74610126,107860.0,107850.0,0.42854126]
[1756522839471,0.38530126,107860.0,107850.0,0.42854126]
[1756522839670,0.74610126,107860.0,107850.0,0.42854126]
[1756522843776,0.38530126,107860.0,107850.0,0.42854126]
[1756522844086,0.74610126,107860.0,107850.0,0.42854126]
[1756522850086,0.38530126,107860.0,107850.0,0.42854126]
[1756522850588,0.74610126,107860.0,107850.0,0.42854126]
[1756522852688,0.3875,107860.0,107850.0,0.42854126]
[1756522852881,0.74610126,107860.0,107850.0,0.42854126]
[1756522854189,0.74610126,107860.0,107850.0,0.06994]
[1756522854389,0.74610126,107860.0,107850.0,0.42854126]
[1756522855990,0.74610126,107860.0,107850.0,0.06994]
[1756522856181,0.74610126,107860.0,107850.0,0.42854126]
[1756522856593,0.74610126,107860.0,107850.0,0.06994]
[1756522856792,0.76943129,107860.0,107850.0,0.42854126]
[1756522858184,0.41083003,107860.0,107850.0,0.42854126]
[1756522858390,0.76943129,107860.0,107850.0,0.42854126]
[1756522858586,0.76943129,107860.0,107850.0,0.06994]
[1756522858783,0.76943129,107860.0,107850.0,0.42854126]
[1756522859084,0.76943129,107860.0,107850.0,0.06994]
[1756522859489,0.76943129,107860.0,107850.0,0.42854126]
[1756522860092,0.76943129,107860.0,107850.0,0.06994]
[1756522860292,0.76943129,107860.0,107850.0,0.42854126]
[1756522863790,0.03976003,107860.0,107850.0,0.42854126]
[1756522863992,0.04606003,107860.0,107850.0,0.42854126]
[1756522864492,0.40466129,107860.0,107850.0,0.42854126]
[1756522865787,0.04606003,107860.0,107850.0,0.42854126]
[1756522866294,0.40466129,107860.0,107850.0,0.42854126]
[1756522866696,1.25929289,107870.0,107850.0,0.42854126]
[1756522866697,0.06151289,107870.0,107850.0,1.35499252]
[1756522866896,0.07550289,107870.0,107860.0,1.14781252]
[1756522867701,0.06676289,107870.0,107860.0,1.99349252]
[1756522867894,0.03245667,107870.0,107860.0,2.60209378]
[1756522868092,0.38983037,107890.0,107860.0,2.65264188]
[1756522868298,0.77553163,107890.0,107880.0,0.42841126]
[1756522868900,0.77553163,107890.0,107880.0,0.06981]
[1756522869197,0.77553163,107890.0,107880.0,0.42841126]
[1756522869397,0.41693037,107890.0,107880.0,0.78701252]
[1756522869600,0.42093037,107890.0,107880.0,0.78701252]
[1756522870398,0.45322928,107890.0,107880.0,0.78701252]
[1756522871386,0.45422928,107890.0,107880.0,0.78701252]
[1756522871799,0.45222928,107890.0,107880.0,0.78701252]
[1756522872700,0.09142928,107890.0,107880.0,0.78701252]
[1756522873402,0.09142928,107890.0,107880.0,1.14781252]
[1756522876208,0.08268928,107890.0,107880.0,1.14781252]
[1756522876401,0.05558928,107890.0,107880.0,1.14781252]
[1756522876609,0.05558928,107890.0,107880.0,1.99325252]
[1756522877498,0.05458928,107890.0,107880.0,1.99325252]
[1756522878505,0.05358928,107890.0,107880.0,2.24325252]
[1756522885810,0.05358928,107890.0,107880.0,1.99325252]
[1756522886503,0.05358928,107890.0,107880.0,1.27605]
[1756522886808,0.05358928,107890.0,107880.0,1.99325252]
[1756522887709,0.05358928,107890.0,107880.0,2.35185378]
[1756522888511,0.01024928,107890.0,107880.0,2.44453468]
[1756522888809,0.001,107890.0,107880.0,2.44453468]
[1756522889310,0.001,107890.0,107880.0,1.99297252]
[1756522889710,0.001,107890.0,107880.0,1.14781252]
[1756522890011,0.001,107890.0,107880.0,1.99297252]
[1756522890415,0.04845785,107890.0,107880.0,1.14781252]
[1756522890608,0.08916785,107890.0,107880.0,1.14781252]
[1756522890915,0.08916785,107890.0,107880.0,1.99293252]
[1756522891408,0.08916785,107890.0,107880.0,1.63417011]
[1756522892515,0.11626785,107890.0,107880.0,0.78905011]
[1756522892716,0.11626785,107890.0,107880.0,1.63417011]
[1756522893614,0.47470796,107890.0,107880.0,0.06981]
[1756522893915,0.0703,107880.0,107870.0,0.93152077]
[1756522894110,0.42874011,107880.0,107870.0,0.93152077]
[1756522894415,0.4311,107880.0,107870.0,0.93152077]
[1756522894916,1.03954011,107880.0,107870.0,0.08644077]
[1756522895318,0.6811,107880.0,107870.0,0.08644077]
[1756522895509,0.6811,107880.0,107870.0,0.44488088]
[1756522895911,0.7043787,107880.0,107870.0,0.44488088]
[1756522896108,1.06281881,107880.0,107870.0,0.04502077]
[1756522896915,0.7063787,107880.0,107870.0,0.04502077]
[1756522897316,0.7073787,107880.0,107870.0,0.08644077]
[1756522898317,0.7073787,107880.0,107870.0,0.44488088]
[1756522899017,0.7073787,107880.0,107870.0,0.08644077]
[1756522899221,0.3233,107880.0,107870.0,0.08644077]
[1756522899518,0.3233,107880.0,107870.0,0.44488088]
[1756522900720,0.0733,107880.0,107870.0,0.44488088]
[1756522901220,0.03049,107880.0,107870.0,0.42612011]
[1756522901520,0.0733,107880.0,107870.0,0.42612011]
[1756522901721,0.0733,107880.0,107870.0,0.78692011]
[1756522902118,0.03049,107880.0,107870.0,0.78692011]
[1756522902319,0.0723,107880.0,107870.0,0.78692011]
[1756522903521,0.0713,107880.0,107870.0,0.78692011]
[1756522903722,0.02849,107880.0,107870.0,0.78692011]
[1756522904520,0.0713,107880.0,107870.0,0.78692011]
[1756522906822,0.0713,107880.0,107870.0,0.06768]
[1756522906823,0.09457595,107880.0,107870.0,0.06768]
[1756522907019,0.45301606,107880.0,107870.0,0.06768]
[1756522907614,0.09457595,107880.0,107870.0,0.06768]
[1756522907921,0.09457595,107880.0,107870.0,0.42612011]
[1756522909218,0.37987011,107890.0,107880.0,0.06768]
[1756522909417,0.02143,107890.0,107880.0,0.42612011]
[1756522910427,0.02243,107890.0,107880.0,0.42612011]
[1756522910627,0.74367011,107890.0,107880.0,0.06768]
[1756522911028,1.58871011,107890.0,107880.0,0.06768]
[1756522911228,1.60211011,107890.0,107880.0,0.02626]
[1756522911824,1.60211011,107890.0,107880.0,0.06768]
[1756522912530,1.64927435,107890.0,107880.0,0.06768]
[1756522913535,1.89927435,107890.0,107880.0,0.02626]
[1756522918839,1.64927435,107890.0,107880.0,0.02626]
[1756522920241,1.28843435,107890.0,107880.0,0.06768]
[1756522921235,1.31114451,107890.0,107880.0,0.06768]
[1756522922445,0.86771016,107890.0,107880.0,0.06768]
[1756522922640,1.22615027,107890.0,107880.0,0.06768]
[1756522923448,0.42749204,107890.0,107880.0,0.06768]
[1756522923641,0.06905193,107890.0,107880.0,0.42612011]
[1756522923843,1.27249204,107890.0,107880.0,0.06768]
[1756522924045,1.63329204,107890.0,107880.0,0.06768]
[1756522925443,0.78829204,107890.0,107880.0,0.06768]
[1756522925645,1.63329204,107890.0,107880.0,0.06768]
[1756522927343,1.63339478,107890.0,107880.0,0.42622285]
[1756522927545,1.27485193,107890.0,107880.0,0.42622285]
[1756522927745,1.63339478,107890.0,107880.0,0.42622285]
[1756522931046,0.78839478,107890.0,107880.0,0.42622285]
[1756522931251,1.27255478,107890.0,107880.0,0.42622285]
[1756522933251,0.42759478,107890.0,107880.0,0.42622285]
[1756522933453,1.27255478,107890.0,107880.0,0.42622285]
[1756522934752,1.27255478,107890.0,107880.0,0.38480285]
[1756522934953,1.27255478,107890.0,107880.0,0.42523285]
[1756522938757,0.42759478,107890.0,107880.0,0.42523285]
[1756522938949,0.42759478,107890.0,107880.0,0.7837757]
[1756522939149,0.91393193,107890.0,107880.0,0.7837757]
[1756522939350,1.27247478,107890.0,107880.0,0.42523285]
[1756522940150,0.06905193,107890.0,107880.0,0.7837757]
[1756522940349,0.89122177,107890.0,107880.0,0.7837757]
[1756522940555,0.04634177,107890.0,107880.0,0.7837757]
[1756522940753,1.56422285,107900.0,107880.0,0.7837757]
[1756522940949,1.58701594,107900.0,107890.0,0.42788285]
[1756522942255,0.74213594,107900.0,107890.0,0.42788285]
[1756522942446,1.58701594,107900.0,107890.0,0.42788285]
[1756522942647,1.58901594,107900.0,107890.0,0.42788285]
[1756522943256,0.02679309,107900.0,107890.0,0.42788285]
[1756522943449,1.23017594,107900.0,107890.0,0.78868285]
[1756522943853,1.27711292,107900.0,107890.0,0.78868285]
[1756522944055,1.27711292,107900.0,107890.0,0.43014]
[1756522944354,1.27711292,107900.0,107890.0,0.78868285]
[1756522945255,1.27611292,107900.0,107890.0,0.78868285]
[1756522946955,1.27711292,107900.0,107890.0,0.78868285]
[1756522947156,1.27711292,107900.0,107880.0,0.3608]
[1756522947157,1.99645577,107900.0,107880.0,0.3608]
[1756522947347,0.04818,107880.0,107870.0,0.69989492]
[1756522947548,0.40672285,107880.0,107870.0,0.69989492]
[1756522947754,1.25152285,107880.0,107870.0,0.69989492]
[1756522948453,0.89298,107880.0,107870.0,0.69989492]
[1756522949245,0.89298,107880.0,107870.0,0.74032492]
[1756522949448,0.89298,107880.0,107870.0,0.74031918]
[1756522950345,0.04818,107880.0,107870.0,0.74031918]
[1756522950957,0.04918,107880.0,107870.0,0.74031918]
[1756522951659,0.05018,107880.0,107870.0,0.74031918]
[1756522953558,0.002,107880.0,107870.0,0.74031918]
[1756522954259,0.002,107880.0,107870.0,0.99031918]
[1756522954760,0.001,107880.0,107870.0,0.99031918]
[1756522956259,0.0420283,107890.0,107870.0,0.94988918]
[1756522956562,0.0700783,107890.0,107880.0,0.78713711]
[1756522956758,0.09312889,107890.0,107880.0,0.78713711]
[1756522957959,0.09412889,107890.0,107880.0,0.78713711]
[1756522958663,0.09512889,107890.0,107880.0,0.78713711]
[1756522960152,0.09512889,107890.0,107880.0,0.42633711]
[1756522960358,0.09512889,107890.0,107880.0,0.78713711]
[1756522962159,0.095132,107890.0,107880.0,0.78713711]
[1756522966970,0.073402,107890.0,107880.0,0.78713711]
[1756522968272,0.073402,107890.0,107880.0,0.4286]
[1756522968471,0.073402,107890.0,107880.0,0.78713711]
[1756522971168,0.045352,107890.0,107880.0,0.78713711]
[1756522971369,0.045352,107890.0,107880.0,1.1455522]
[1756522977870,0.78763308,107900.0,107880.0,1.447643]
[1756522977871,0.04693698,107900.0,107880.0,1.447643]
[1756522978077,1.32014571,107910.0,107900.0,0.02721]
[1756522978273,1.37134081,107910.0,107900.0,0.0678]
[1756522978680,1.37134081,107910.0,107900.0,0.4262761]
[1756522980280,1.37234081,107910.0,107900.0,0.4262761]
[1756522980574,1.41865511,107910.0,107900.0,0.4262761]
[1756522980773,1.41965511,107910.0,107900.0,0.4262761]
[1756522980973,0.21661901,107910.0,107900.0,0.7847522]
[1756522981174,1.06113901,107910.0,107900.0,0.7847522]
[1756522981382,1.41961511,107910.0,107900.0,0.4262761]
[1756522981685,1.41961511,107910.0,107900.0,0.7847522]
[1756522982883,0.19519901,107910.0,107900.0,0.7847522]
[1756522983183,0.19519901,107910.0,107900.0,1.1455522]
[1756522983381,0.23546901,107910.0,107900.0,1.1455522]
[1756522984184,0.16714901,107910.0,107900.0,1.1455522]
[1756522984486,0.14400391,107910.0,107900.0,1.1455522]
[1756522985275,0.14300391,107910.0,107900.0,1.1455522]
[1756522985586,0.14200391,107910.0,107900.0,1.1465522]
[1756522988091,0.14200391,107910.0,107900.0,1.3965522]
[1756522989088,0.14200391,107910.0,107900.0,1.4149733]
[1756522989985,0.14200391,107910.0,107900.0,0.6980211]
[1756522989986,0.21075391,107910.0,107900.0,0.6980211]
[1756522990191,0.21075391,107910.0,107900.0,2.2593333]
[1756522990392,0.21075391,107910.0,107900.0,1.4149733]
[1756522990691,0.21075391,107910.0,107900.0,2.2592933]
[1756522991701,0.56923001,107910.0,107900.0,0.8064972]
[1756522991894,0.56923001,107910.0,107900.0,0.4456972]
[1756522993002,0.56923001,107910.0,107900.0,0.8041733]
[1756522993303,0.21075391,107910.0,107900.0,0.80639998]
[1756522994798,0.19031195,107910.0,107900.0,0.80639998]
[1756522995605,0.21105432,107910.0,107900.0,0.80639998]
[1756522996501,0.21105432,107910.0,107900.0,0.44559998]
[1756522996806,0.23424327,107910.0,107900.0,0.44559998]
[1756522998807,1.07848327,107910.0,107900.0,0.44559998]
[1756522999103,1.07844327,107910.0,107900.0,0.44559998]
[1756523000906,0.23424327,107910.0,107900.0,0.44559998]
[1756523001101,0.23424327,107910.0,107900.0,0.0872211]
[1756523001302,1.07844327,107910.0,107900.0,0.44559998]
[1756523001613,0.23424327,107910.0,107900.0,0.44559998]
[1756523001804,1.07844327,107910.0,107900.0,0.44559998]
[1756523002503,1.07840327,107910.0,107900.0,0.44559998]
[1756523003502,0.23424327,107910.0,107900.0,0.44559998]
[1756523003707,1.0784201,107910.0,107900.0,0.44559998]
[1756523006816,1.05517432,107910.0,107900.0,0.44559998]
[1756523008713,1.05517432,107910.0,107900.0,0.80639998]
[1756523012522,0.21105432,107910.0,107900.0,0.80639998]
[1756523012718,0.12156195,107910.0,107900.0,2.10152256]
[1756523012919,1.16985853,107930.0,107900.0,2.35152256]
[1756523013121,1.16985853,107930.0,107920.0,0.42827888]
[1756523013122,0.47309274,107930.0,107920.0,0.42827888]
[1756523013322,1.6781299,107930.0,107920.0,0.78637432]
[1756523013818,1.31989274,107930.0,107920.0,0.78637432]
[1756523014018,1.6781299,107930.0,107920.0,0.78637432]
[1756523014219,1.31993274,107930.0,107920.0,0.78637432]
[1756523014411,1.7239141,107930.0,107920.0,0.78637432]
[1756523014911,1.7259141,107930.0,107920.0,0.78637432]
[1756523015317,1.36767694,107930.0,107920.0,0.42814796]
[1756523015518,0.52083694,107930.0,107920.0,0.42814796]
[1756523015821,1.36951694,107930.0,107920.0,0.42814796]
[1756523016223,1.00871694,107930.0,107920.0,0.42814796]
[1756523017325,1.00571694,107930.0,107920.0,0.42814796]
[1756523017525,1.00671694,107930.0,107920.0,0.42814796]
[1756523018125,1.00647694,107930.0,107920.0,0.42814796]
[1756523018420,1.6851449,107930.0,107910.0,0.39996796]
[1756523018626,0.06821,107920.0,107910.0,0.0699]
[1756523018816,0.06821,107920.0,107910.0,0.42814796]
[1756523019422,0.06821,107920.0,107910.0,0.78894796]
[1756523020432,0.06821,107920.0,107910.0,0.78994796]
[1756523020622,0.42645796,107920.0,107910.0,0.0709]
[1756523020829,0.42645796,107920.0,107910.0,0.0699]
[1756523021026,1.03725796,107920.0,107910.0,0.001]
[1756523021232,1.06128907,107920.0,107910.0,0.001]
[1756523021433,1.06128907,107920.0,107910.0,0.02918]
[1756523022334,1.90812907,107920.0,107910.0,0.02918]
[1756523022534,1.90812981,107920.0,107910.0,0.02918]
[1756523022829,1.88409796,107920.0,107910.0,0.02918]
[1756523023034,1.90912981,107920.0,107910.0,0.02918]
[1756523023234,1.88509796,107920.0,107910.0,0.02918]
[1756523023428,1.88509796,107920.0,107910.0,0.02818]
[1756523023634,1.71402745,107920.0,107910.0,0.02818]
[1756523024735,1.73805845,107920.0,107910.0,0.02818]
[1756523025431,0.53297049,107920.0,107910.0,0.0699]
[1756523025635,0.872551,107920.0,107910.0,0.4307]
[1756523025841,0.872551,107920.0,107910.0,0.78894796]
[1756523026238,0.872551,107920.0,107910.0,0.4307]
[1756523026427,0.872551,107920.0,107910.0,0.78894796]
[1756523026830,0.026031,107920.0,107910.0,0.78894796]
[1756523027035,0.884871,107920.0,107910.0,0.78894796]
[1756523030641,0.71209763,107920.0,107910.0,0.78894796]
[1756523031748,0.06658273,107930.0,107920.0,0.0699]
[1756523031946,1.28303069,107930.0,107920.0,0.0699]
[1756523032149,1.64383069,107930.0,107920.0,0.0699]
[1756523033154,1.64583069,107930.0,107920.0,0.0699]
[1756523033654,1.64783069,107930.0,107920.0,0.0699]
[1756523035654,1.28958273,107930.0,107920.0,0.0699]